bitfinex-derivatives/quotes_SOLF0:USTF0_20260115
["timestamp","ask_amount","ask_price","bid_price","bid_amount"]
[1768497390013,42.28,143.2,143.13,3.39572003]
[1768497390213,5.08678827,143.19,143.13,3.39572003]
[1768497390414,42.28,143.2,143.13,3.39572003]
[1768497390612,11.37430427,143.19,143.13,3.39572003]
[1768497390915,6.2872,143.19,143.13,3.39572003]
[1768497391209,45.32308657,143.2,143.13,3.39572003]
[1768497391414,5.08725127,143.19,143.13,3.39572003]
[1768497391622,45.32308657,143.2,143.13,3.39572003]
[1768497391806,5.08780885,143.19,143.13,3.39572003]
[1768497392006,51.60988657,143.2,143.13,3.39572003]
[1768497392310,5.08784048,143.19,143.13,3.39572003]
[1768497392612,51.60988657,143.2,143.13,3.39572003]
[1768497392815,5.0885041,143.19,143.13,3.39572003]
[1768497393112,51.60988657,143.2,143.13,9.68552003]
[1768497393309,5.08863859,143.19,143.13,9.68552003]
[1768497393517,51.60988657,143.2,143.13,9.68552003]
[1768497393812,3.05363978,143.18,143.1,3.57820268]
[1768497394209,8.14310554,143.17,143.1,3.57820268]
[1768497394412,3.05363978,143.17,143.1,3.57820268]
[1768497394611,9.34183978,143.17,143.1,9.86930268]
[1768497396919,5.09029125,143.16,143.11,3.57820268]
[1768497397107,9.34183978,143.17,143.11,3.57820268]
[1768497397312,5.09028809,143.16,143.11,3.57820268]
[1768497397512,9.34183978,143.17,143.11,3.57820268]
[1768497397708,5.09122203,143.16,143.11,3.57820268]
[1768497397912,9.34183978,143.17,143.11,3.57820268]
[1768497398216,5.09142667,143.16,143.11,3.57820268]
[1768497398413,9.34183978,143.17,143.11,3.57820268]
[1768497398616,5.09223479,143.16,143.11,3.57820268]
[1768497398923,9.34183978,143.17,143.11,3.57820268]
[1768497399126,5.09188002,143.16,143.11,3.57820268]
[1768497399425,9.34183978,143.17,143.11,3.57820268]
[1768497399626,5.09273564,143.16,143.11,3.57820268]
[1768497399813,9.34183978,143.17,143.11,3.57820268]
[1768497400008,5.09273564,143.16,143.11,3.57820268]
[1768497400213,9.36227696,143.16,143.1,6.2911]
[1768497400512,5.09328745,143.15,143.1,9.86930268]
[1768497400716,3.07377696,143.16,143.1,9.86930268]
[1768497400915,5.09329899,143.15,143.1,9.86930268]
[1768497401220,3.07377696,143.16,143.1,9.86930268]
[1768497401421,5.09368131,143.15,143.1,9.86930268]
[1768497401615,3.07377696,143.16,143.1,9.86930268]
[1768497401820,5.0939189,143.15,143.1,9.86930268]
[1768497402020,3.07377696,143.16,143.1,9.86930268]
[1768497402219,5.09359219,143.15,143.1,9.86930268]
[1768497402420,3.07377696,143.16,143.1,9.86930268]
[1768497402618,5.09482268,143.15,143.1,9.86930268]
[1768497402825,3.07377696,143.16,143.1,9.86930268]
[1768497403122,5.09482579,143.15,143.1,9.86930268]
[1768497403326,3.07377696,143.16,143.1,9.86930268]
[1768497403624,5.09649673,143.15,143.1,9.86930268]
[1768497403825,3.07377696,143.16,143.1,9.86930268]
[1768497404127,5.09650306,143.15,143.1,9.86930268]
[1768497404322,9.36227696,143.16,143.1,9.86930268]
[1768497404521,5.09593625,143.15,143.1,9.86930268]
[1768497404717,9.36227696,143.16,143.1,9.86930268]
[1768497404922,5.09558364,143.15,143.1,9.86930268]
[1768497405122,9.36227696,143.16,143.1,9.86930268]
[1768497405320,5.09578137,143.15,143.1,9.86930268]
[1768497405626,9.36227696,143.16,143.1,9.86930268]
[1768497405820,5.09603416,143.15,143.1,9.86930268]
[1768497406020,9.36227696,143.16,143.1,9.86930268]
[1768497406220,5.09605321,143.15,143.1,9.86930268]
[1768497406429,9.36227696,143.16,143.1,9.86930268]
[1768497406637,14.48044385,143.15,143.08,45.59820268]
[1768497406920,8.24257847,143.14,143.08,3.57820268]
[1768497407226,5.096099,143.13,143.08,3.57820268]
[1768497407426,3.14647947,143.14,143.08,3.57820268]
[1768497407615,5.09647925,143.13,143.08,3.57820268]
[1768497407812,3.14647947,143.14,143.08,3.57820268]
[1768497407813,9.43587947,143.14,143.08,3.57820268]
[1768497408013,5.09648056,143.13,143.08,3.57820268]
[1768497408221,9.43587947,143.14,143.08,3.57820268]
[1768497408427,5.09612538,143.13,143.08,3.57820268]
[1768497408725,9.43587947,143.14,143.08,3.57820268]
[1768497408918,5.09614121,143.13,143.08,3.57820268]
[1768497409120,9.43587947,143.14,143.08,3.57820268]
[1768497409320,5.09571121,143.13,143.08,3.57820268]
[1768497409522,9.43587947,143.14,143.08,3.57820268]
[1768497409819,5.09582676,143.13,143.08,3.57820268]
[1768497410016,3.14647947,143.14,143.06,3.57820268]
[1768497410220,3.10369778,143.12,143.02,3.57820268]
[1768497410521,5.09581094,143.11,143.03,3.57820268]
[1768497410723,3.10369778,143.12,143.03,3.57820268]
[1768497410926,0.05289729,143.08,143.03,3.57820268]
[1768497411713,3.10369778,143.12,143.05,3.34492874]
[1768497411923,5.09393538,143.11,143.05,3.34492874]
[1768497412121,3.10369778,143.12,143.05,3.34492874]
[1768497412918,9.39399778,143.12,143.05,9.63822874]
[1768497416317,9.39399778,143.12,143.07,0.04483638]
[1768497417024,6.2908,143.11,143.07,0.04483638]
[1768497417220,3.10369778,143.12,143.07,0.04483638]
[1768497417620,9.39409778,143.12,143.07,0.04483638]
[1768497418632,6.2904,143.12,143.07,3.38976512]
[1768497418834,9.42676224,143.14,143.07,3.38976512]
[1768497419033,3.13726224,143.14,143.07,3.38976512]
[1768497419226,5.06872992,143.13,143.07,3.38976512]
[1768497419421,3.13726224,143.14,143.07,3.38976512]
[1768497419825,6.2899,143.13,143.07,9.68216512]
[1768497420831,6.2893,143.15,143.09,3.34492874]
[1768497421025,5.06717568,143.14,143.09,3.34492874]
[1768497421225,6.2893,143.15,143.09,3.34492874]
[1768497421432,5.06719319,143.14,143.09,3.34492874]
[1768497421645,9.43368586,143.15,143.09,3.34492874]
[1768497421833,5.06718426,143.14,143.09,3.34492874]
[1768497422031,9.43368586,143.15,143.09,3.34492874]
[1768497422234,5.06717167,143.14,143.09,3.34492874]
[1768497422530,9.43368586,143.15,143.09,3.34492874]
[1768497422731,11.35579037,143.14,143.09,3.34492874]
[1768497422932,3.14671416,143.14,143.06,6.2927]
[1768497423125,8.21318699,143.13,143.06,9.63762874]
[1768497423325,3.14671416,143.13,143.06,9.63762874]
[1768497423837,6.2903,143.12,143.06,9.63762874]
[1768497424628,6.2903,143.12,143.07,3.34492874]
[1768497425736,3.14671416,143.13,143.07,3.34492874]
[1768497426534,0.04504793,143.11,143.07,3.34492874]
[1768497426730,0.04504793,143.11,143.09,0.05217702]
[1768497426939,3.15568821,143.16,143.09,3.39710576]
[1768497427135,8.26833213,143.15,143.09,3.39710576]
[1768497427337,5.06759599,143.14,143.09,3.34492874]
[1768497427537,3.20073614,143.15,143.09,3.34492874]
[1768497427843,14.56008513,143.14,143.07,3.34492874]
[1768497428049,9.49240083,143.14,143.07,3.34492874]
[1768497428234,9.49240083,143.14,143.11,0.05007809]
[1768497429245,3.20300083,143.14,143.11,0.05007809]
[1768497430548,3.20300083,143.14,143.04,3.34492874]
[1768497430845,8.27698418,143.13,143.05,3.34492874]
[1768497431047,3.20967806,143.13,143.05,3.34492874]
[1768497431943,3.20967806,143.13,143.06,9.63782874]
[1768497431944,9.49947806,143.13,143.06,9.63782874]
[1768497432833,9.50442389,143.12,143.06,3.34492874]
[1768497433144,3.21402389,143.12,143.06,3.34492874]
[1768497433341,9.50432389,143.12,143.06,3.34492874]
[1768497433644,3.21402389,143.12,143.06,3.34492874]
[1768497434246,9.50432389,143.12,143.06,9.63772874]
[1768497436254,9.50432389,143.12,143.06,3.34492874]
[1768497436749,3.21402389,143.12,143.06,3.34492874]
[1768497437639,9.50432389,143.12,143.06,9.63782874]
[1768497438549,3.22646058,143.14,143.08,3.34492874]
[1768497438846,5.07139562,143.13,143.08,3.34492874]
[1768497439040,3.22646058,143.14,143.08,3.34492874]
[1768497439236,5.07142107,143.13,143.08,3.34492874]
[1768497439436,3.22646058,143.14,143.08,3.34492874]
[1768497439638,5.07217287,143.13,143.08,3.34492874]
[1768497439835,9.51586058,143.14,143.08,3.34492874]
[1768497440039,5.07249011,143.13,143.08,3.34492874]
[1768497440234,9.51586058,143.14,143.08,3.34492874]
[1768497440436,5.07332678,143.13,143.08,3.34492874]
[1768497440641,9.51586058,143.14,143.08,3.34492874]
[1768497440840,5.07333624,143.13,143.08,3.34492874]
[1768497441041,9.51586058,143.14,143.08,3.34492874]
[1768497441241,5.07367156,143.13,143.08,3.34492874]
[1768497441441,9.51586058,143.14,143.08,3.34492874]
[1768497441744,5.07511038,143.13,143.08,3.34492874]
[1768497441945,9.51586058,143.14,143.08,3.34492874]
[1768497442145,5.07550917,143.13,143.08,3.34492874]
[1768497442342,3.22999569,143.19,143.09,3.49673014]
[1768497442541,8.30874877,143.18,143.09,3.49673014]
[1768497442743,5.07682391,143.17,143.09,3.49673014]
[1768497443144,5.07682391,143.17,143.12,0.04824483]
[1768497445151,8.31634904,143.17,143.12,0.04824483]
[1768497445352,5.07682391,143.16,143.12,0.04824483]
[1768497447849,3.23952513,143.17,143.12,0.04824483]
[1768497452751,9.54085945,143.2,143.13,3.37956693]
[1768497452946,8.33209217,143.19,143.13,3.37956693]
[1768497453254,5.07833272,143.18,143.13,3.37956693]
[1768497453552,3.25375945,143.19,143.13,3.37956693]
[1768497453749,3.25375945,143.19,143.13,9.66926693]
[1768497456058,50.3651032,143.21,143.14,9.66866693]
[1768497456257,5.07641165,143.2,143.14,9.66866693]
[1768497456450,3.2588032,143.21,143.14,9.66866693]
[1768497456649,8.33610395,143.2,143.14,9.66866693]
[1768497456852,3.26041096,143.2,143.14,9.66866693]
[1768497462560,3.26041096,143.2,143.14,12.48179813]
[1768497462953,5.06941817,143.19,143.14,12.48179813]
[1768497463166,3.26041096,143.2,143.14,12.48179813]
[1768497463460,5.0697924,143.19,143.14,12.48179813]
[1768497463661,3.26041096,143.2,143.14,12.48179813]
[1768497463859,9.55700803,143.22,143.15,9.66836693]
[1768497464053,5.06962901,143.21,143.16,3.37956693]
[1768497464255,9.55700803,143.22,143.16,3.37956693]
[1768497464561,5.06907792,143.21,143.16,3.37956693]
[1768497464761,9.55700803,143.22,143.16,3.37956693]
[1768497464960,5.06907792,143.21,143.16,3.37956693]
[1768497465155,9.55700803,143.22,143.16,3.37956693]
[1768497465354,5.06957982,143.21,143.17,3.37956693]
[1768497465551,3.27110803,143.22,143.17,3.37956693]
[1768497466064,3.27110803,143.22,143.17,9.66756693]
[1768497467059,3.27110803,143.22,143.17,3.37956693]
[1768497470867,9.56266673,143.24,143.17,3.37956693]
[1768497471062,9.56266673,143.24,143.16,9.1016312]
[1768497471063,5.06618037,143.23,143.18,3.66433573]
[1768497471271,3.27756673,143.26,143.19,3.66433573]
[1768497472156,3.27756673,143.26,143.19,9.95143573]
[1768497472963,3.28016753,143.24,143.18,6.2875]
[1768497473169,3.28016753,143.24,143.18,9.95183573]
[1768497474070,3.28016753,143.24,143.16,9.95253573]
[1768497474277,3.28016753,143.24,143.16,3.66433573]
[1768497474477,0.05265863,143.22,143.16,3.66433573]
[1768497474680,0.05265863,143.22,143.17,6.288]
[1768497474883,3.33535846,143.22,143.19,0.05245148]
[1768497475572,3.33535846,143.22,143.16,3.66433573]
[1768497475573,3.33535846,143.22,143.16,9.95273573]
[1768497475777,3.33535846,143.22,143.14,3.66433573]
[1768497476380,3.28388948,143.2,143.14,3.66433573]
[1768497476777,3.28388948,143.2,143.14,9.95363573]
[1768497477286,0.05005646,143.18,143.14,9.95363573]
[1768497479980,0.05005646,143.18,143.12,9.95423573]
[1768497480376,3.33992018,143.18,143.12,9.95423573]
[1768497480686,3.28986372,143.17,143.1,3.66433573]
[1768497480889,3.28986372,143.15,143.08,3.66433573]
[1768497481383,3.28986372,143.13,143.06,3.66433573]
[1768497481581,3.3382011,143.13,143.06,3.66433573]
[1768497483291,3.29218489,143.11,143.04,3.66433573]
[1768497483689,2.8131312,143.08,143.02,3.66433573]
[1768497484076,3.34535247,143.09,143.02,3.66433573]
[1768497484888,3.34535247,143.09,143.02,9.95893573]
[1768497486392,3.34535247,143.09,143.03,6.2941]
[1768497486982,0.05203063,143.09,143.03,9.95843573]
[1768497488287,3.34993095,143.09,143.01,9.95913573]
[1768497488491,3.34993095,143.09,143.01,3.66433573]
[1768497488788,3.29790032,143.09,143.01,3.66433573]
[1768497489192,0.04983129,143.06,143.01,3.66433573]
[1768497489781,0.04983129,143.06,143.02,9.95893573]
[1768497492789,3.29790032,143.09,143.03,3.66433573]
[1768497494489,3.30423331,143.11,143.04,3.66433573]
[1768497494991,3.30423331,143.11,143.05,3.71576787]
[1768497495198,3.30524136,143.14,143.06,3.66433573]
[1768497495693,3.30524136,143.14,143.07,6.2924]
[1768497495990,3.30524136,143.14,143.07,9.95673573]
[1768497496492,3.30524136,143.14,143.09,0.05239206]
[1768497497197,9.59474136,143.14,143.09,0.05239206]
[1768497497486,3.30728093,143.13,143.09,0.05239206]
[1768497498483,3.30728093,143.13,143.03,6.294]
[1768497498484,3.25683354,143.1,143.03,6.294]
[1768497498683,3.25683354,143.1,143.02,3.66433573]
[1768497499487,9.54823354,143.1,143.02,3.66433573]
[1768497500199,6.2917,143.09,143.02,9.95893573]
[1768497500391,3.25683354,143.1,143.02,9.95893573]
[1768497501794,9.54813354,143.1,143.02,9.95893573]
[1768497501989,3.25683354,143.1,143.02,3.66433573]
[1768497503299,3.26922743,143.12,143.04,3.58135184]
[1768497503794,6.29,143.13,143.06,3.58135184]
[1768497504000,0.04651183,143.09,143.06,3.58135184]
[1768497504195,6.29,143.13,143.06,3.58135184]
[1768497504503,9.56015862,143.13,143.08,0.04984509]
[1768497505192,3.27015862,143.13,143.08,0.04984509]
[1768497508094,9.56035862,143.13,143.08,0.04984509]
[1768497510597,9.56708111,143.15,143.08,0.04984509]
[1768497510797,9.56708111,143.15,143.08,3.55467936]
[1768497510994,6.2893,143.15,143.08,3.55467936]
[1768497511198,9.56708111,143.15,143.08,3.55467936]
[1768497512002,6.2895,143.14,143.08,3.55467936]
[1768497513003,3.27778111,143.15,143.08,3.55467936]
[1768497513297,0.04794978,143.12,143.08,3.55467936]
[1768497513804,0.04794978,143.12,143.08,0.04984509]
[1768497514102,3.32826272,143.12,143.08,0.04984509]
[1768497514903,9.61856272,143.12,143.08,0.04984509]
[1768497516298,3.32826272,143.12,143.08,0.04984509]
[1768497516692,0.04794978,143.12,143.08,3.55467936]
[1768497517307,0.04794978,143.12,143.08,9.84667936]
[1768497521794,9.62300582,143.17,143.09,9.79643427]
[1768497522106,3.33450582,143.17,143.1,3.50483427]
[1768497522305,8.33119666,143.16,143.1,3.50483427]
[1768497522602,3.33450582,143.16,143.1,3.50483427]
[1768497522799,9.62300582,143.16,143.1,3.50483427]
[1768497523205,9.62300582,143.16,143.12,0.04951154]
[1768497523402,3.33620164,143.18,143.12,0.04951154]
[1768497523598,4.99877202,143.17,143.12,3.55434581]
[1768497523803,3.33620164,143.2,143.12,3.50483427]
[1768497524098,11.28529642,143.19,143.13,6.2898]
[1768497524410,3.33620164,143.23,143.14,3.50483427]
[1768497524600,5.16986052,143.22,143.14,3.50483427]
[1768497524800,5.16986052,143.21,143.14,3.50483427]
[1768497525108,5.16986052,143.2,143.14,3.50483427]
[1768497525302,6.2859,143.22,143.17,0.05147385]
[1768497525508,5.16678065,143.21,143.17,0.05147385]
[1768497525709,5.16678065,143.2,143.17,0.05147385]
[1768497525907,9.62328908,143.22,143.17,0.05147385]
[1768497526108,5.16678065,143.21,143.17,0.05147385]
[1768497526310,5.16678065,143.2,143.17,0.05147385]
[1768497526608,9.62328908,143.22,143.17,0.05147385]
[1768497526811,5.16426404,143.21,143.17,0.05147385]
[1768497527004,9.62328908,143.22,143.17,0.05147385]
[1768497527206,5.16425717,143.21,143.17,0.05147385]
[1768497527404,6.2853,143.24,143.17,3.55630812]
[1768497527599,5.16130437,143.23,143.17,3.55630812]
[1768497527801,3.33845056,143.25,143.17,3.55630812]
[1768497528111,5.16082518,143.24,143.17,3.55630812]
[1768497528301,3.33845056,143.25,143.19,6.2871]
[1768497528510,3.33845056,143.25,143.19,9.79193427]
[1768497529312,3.33845056,143.25,143.21,0.04839066]
[1768497529905,9.62278239,143.28,143.21,0.04839066]
[1768497530101,5.14558732,143.27,143.21,0.04839066]
[1768497530301,5.14558732,143.26,143.21,0.04839066]
[1768497530502,3.33948239,143.27,143.21,0.04839066]
[1768497532819,3.33948239,143.27,143.21,6.33449066]
[1768497533118,9.61618284,143.3,143.21,3.74056539]
[1768497533308,3.33348284,143.29,143.21,3.74056539]
[1768497533709,3.33348284,143.29,143.21,3.69217473]
[1768497534017,3.33348284,143.29,143.24,0.0533632]
[1768497539519,3.33348284,143.29,143.19,3.69217473]
[1768497539717,3.28400403,143.27,143.19,3.69217473]
[1768497540620,3.28464544,143.26,143.19,6.2869]
[1768497541022,3.28464544,143.26,143.22,0.05159592]
[1768497543526,3.28464544,143.26,143.19,6.2869]
[1768497544821,3.28464544,143.26,143.2,6.2864]
[1768497546725,3.23729396,143.28,143.2,3.69217473]
[1768497546926,41.81729396,143.28,143.2,3.69217473]
[1768497547519,3.23802469,143.27,143.2,3.69217473]
[1768497547830,3.23802469,143.27,143.2,9.97847473]
[1768497548422,3.23802469,143.3,143.21,3.69217473]
[1768497550032,3.23802469,143.3,143.23,9.97747473]
[1768497550837,3.24001202,143.29,143.2,3.69217473]
[1768497551436,9.52456197,143.27,143.2,9.97847473]
[1768497553331,3.24135947,143.26,143.18,3.69217473]
[1768497554438,0.05029777,143.23,143.18,3.69217473]
[1768497554938,0.05029777,143.23,143.19,6.287]
[1768497556133,0.05029777,143.23,143.2,6.2867]
[1768497556333,0.05029777,143.23,143.2,9.97887473]
[1768497556537,0.05029777,143.23,143.2,3.69217473]
[1768497556941,3.24397395,143.29,143.22,3.69217473]
[1768497557143,5.1306534,143.28,143.22,3.69217473]
[1768497557437,5.1306534,143.27,143.22,3.69217473]
[1768497557636,3.24397395,143.29,143.26,6.2841]
[1768497558034,3.24397395,143.29,143.22,101.46997473]
[1768497558235,3.24397395,143.29,143.26,0.04519214]
[1768497560540,3.29709216,143.32,143.26,0.04519214]
[1768497560741,5.13432268,143.31,143.26,0.04519214]
[1768497561042,3.29280756,143.37,143.31,6.2818]
[1768497561241,110.1857,143.44,143.3,3.75339764]
[1768497561242,5.13168327,143.36,143.3,3.75339764]
[1768497561444,3.29280756,143.4,143.31,101.46959764]
[1768497561647,3.29280756,143.4,143.35,6.28]
[1768497561943,41.55353273,143.42,143.35,6.28]
[1768497562148,5.13212799,143.41,143.35,6.28]
[1768497562343,5.13212799,143.4,143.35,6.28]
[1768497562640,5.13212799,143.4,143.34,3.75339764]
[1768497562641,3.29419149,143.45,143.37,0.04621334]
[1768497562845,43.36871478,143.44,143.37,0.04621334]
[1768497563047,5.12871478,143.43,143.37,0.04621334]
[1768497563238,38.24,143.44,143.37,0.04621334]
[1768497563435,5.12453957,143.43,143.37,0.04621334]
[1768497563637,5.12453957,143.42,143.37,0.04621334]
[1768497563954,38.24,143.44,143.37,0.04621334]
[1768497563955,41.53487666,143.44,143.37,0.04621334]
[1768497564142,5.12453957,143.43,143.37,0.04621334]
[1768497564642,5.12453957,143.42,143.37,0.04621334]
[1768497564849,41.53487666,143.44,143.37,0.04621334]
[1768497565152,5.1219566,143.43,143.37,3.61010036]
[1768497565450,5.1219566,143.42,143.37,3.61010036]
[1768497565651,41.53487666,143.44,143.37,3.61010036]
[1768497565852,5.11992741,143.43,143.37,3.61010036]
[1768497566055,41.53487666,143.44,143.37,3.61010036]
[1768497566253,5.11621467,143.43,143.37,3.61010036]
[1768497566444,5.11621467,143.42,143.37,3.61010036]
[1768497566638,41.53487666,143.44,143.37,3.61010036]
[1768497566842,10.02911872,143.43,143.37,3.61010036]
[1768497567038,3.29487666,143.44,143.37,3.61010036]
[1768497567249,5.11537427,143.43,143.37,3.61010036]
[1768497567446,3.29487666,143.44,143.37,3.61010036]
[1768497567447,5.11537427,143.42,143.37,3.61010036]
[1768497567649,3.29487666,143.44,143.37,3.61010036]
[1768497567850,5.11723764,143.43,143.37,3.61010036]
[1768497568050,3.29487666,143.44,143.37,3.61010036]
[1768497568554,3.29487666,143.44,143.37,9.88920036]
[1768497571248,3.29487666,143.44,143.37,3.61010036]
[1768497571457,3.29487666,143.44,143.37,0.04621334]
[1768497571754,3.29983498,143.42,143.37,0.04621334]
[1768497572147,3.29983498,143.42,143.34,3.56388702]
[1768497572541,3.29983498,143.42,143.38,0.04505941]
[1768497576048,6.10549663,143.44,143.38,0.04505941]
[1768497576349,41.22216588,143.44,143.38,0.04505941]
[1768497576549,3.30216588,143.44,143.38,0.04505941]
[1768497577351,37.92,143.45,143.38,3.60894643]
[1768497579154,47.43935077,143.46,143.38,3.60894643]
[1768497579556,6.276,143.45,143.38,3.60894643]
[1768497581253,9.58093664,143.45,143.38,3.60894643]
[1768497583155,9.58229257,143.44,143.38,3.60894643]
[1768497583656,9.58229257,143.44,143.38,0.04505941]
[1768497584758,3.29682448,143.42,143.32,6.36721777]
[1768497584951,3.29682448,143.4,143.32,6.36721777]
[1768497585147,3.29682448,143.4,143.32,3.56388702]
[1768497585352,3.29682448,143.38,143.3,3.56388702]
[1768497585554,41.01682448,143.38,143.3,3.56388702]
[1768497585754,3.28722388,143.36,143.28,3.56388702]
[1768497585953,6.2803,143.35,143.28,3.56388702]
[1768497586558,6.2808,143.34,143.28,3.56388702]
[1768497588366,9.56732388,143.36,143.28,3.56388702]
[1768497588760,3.28722388,143.36,143.28,3.56388702]
[1768497589766,6.2803,143.35,143.28,3.56388702]
[1768497591761,6.2807,143.34,143.28,3.56388702]
[1768497591965,9.50175522,143.34,143.26,3.65944722]
[1768497592262,6.02438597,143.33,143.26,3.65944722]
[1768497592469,12.30558597,143.33,143.26,3.65944722]
[1768497593070,0.04445853,143.31,143.26,3.65944722]
[1768497593665,0.04445853,143.31,143.23,2.80333075]
[1768497593666,6.05144348,143.31,143.23,3.65944722]
[1768497593859,3.2036542,143.3,143.23,3.65944722]
[1768497595169,0.04401655,143.28,143.23,3.65944722]
[1768497598970,0.04401655,143.28,143.23,9.94474722]
[1768497599971,0.04401655,143.28,143.22,2.80333075]
[1768497599972,3.18665062,143.33,143.25,3.65944722]
[1768497600369,40.61781623,143.35,143.25,3.65944722]
[1768497601374,3.18983797,143.34,143.29,0.0455661]
[1768497601571,5.99316872,143.34,143.25,3.65944722]
[1768497602876,3.17415529,143.31,143.23,9.94464722]
[1768497603075,2.80333075,143.3,143.23,9.94464722]
[1768497603775,6.2819,143.32,143.25,3.65944722]
[1768497604272,6.282,143.31,143.25,3.65944722]
[1768497604778,0.0450289,143.29,143.25,3.65944722]
[1768497605473,3.15130032,143.35,143.25,3.65944722]
[1768497605779,3.15130032,143.35,143.26,3.70791688]
[1768497606075,6.2807,143.34,143.26,9.99171688]
[1768497606276,9.47702922,143.34,143.26,9.94324722]
[1768497606868,9.47702922,143.34,143.29,0.04610816]
[1768497607270,6.2811,143.33,143.29,0.04610816]
[1768497607474,5.99965997,143.34,143.29,0.04610816]
[1768497607673,5.99965997,143.34,143.26,3.65944722]
[1768497608580,9.47732922,143.34,143.26,3.65944722]
[1768497608767,46.73732922,143.34,143.26,3.65944722]
[1768497608971,3.19632922,143.34,143.26,3.65944722]
[1768497610378,3.19632922,143.34,143.27,3.65944722]
[1768497610970,9.47692922,143.34,143.27,3.65944722]
[1768497611470,6.2811,143.33,143.27,3.65944722]
[1768497611676,3.15292835,143.33,143.24,3.65944722]
[1768497611876,3.1990536,143.32,143.24,3.65944722]
[1768497612367,3.1990536,143.32,143.21,6.46277797]
[1768497612368,3.15292835,143.3,143.21,6.46277797]
[1768497612775,3.15292835,143.3,143.22,3.65944722]
[1768497612972,6.2831,143.29,143.22,3.65944722]
[1768497615082,6.2822,143.31,143.24,3.65944722]
[1768497615475,6.2822,143.31,143.24,3.71278143]
[1768497617582,3.1124339,143.31,143.24,0.05333421]
[1768497618176,2.80333075,143.3,143.24,0.05333421]
[1768497618370,6.2829,143.29,143.24,0.05333421]
[1768497619281,6.2833,143.28,143.24,0.05333421]
[1768497620184,12.19208428,143.3,143.24,0.05333421]
[1768497621283,3.0898146,143.29,143.24,0.05333421]
[1768497621477,37.0,143.31,143.21,3.65944722]
[1768497621478,5.89314535,143.28,143.21,3.65944722]
[1768497621674,5.94419849,143.28,143.21,3.65944722]
[1768497621879,6.2837,143.27,143.21,3.65944722]
[1768497622381,5.94419849,143.28,143.21,3.65944722]
[1768497622584,0.05105314,143.28,143.23,3.37147261]
[1768497622779,0.05105314,143.28,143.22,6.2855]
[1768497623178,3.12855853,143.28,143.18,3.37147261]
[1768497623379,5.88083614,143.25,143.18,3.37147261]
[1768497624171,0.05364537,143.23,143.18,3.37147261]
[1768497625285,0.05364537,143.23,143.18,9.65907261]
[1768497628887,9.08753075,143.26,143.19,9.72764142]
[1768497629087,5.14516067,143.25,143.19,9.77497165]
[1768497629279,9.08753075,143.26,143.19,9.77497165]
[1768497629587,5.15003688,143.25,143.19,9.77497165]
[1768497629786,5.15003688,143.24,143.19,9.77497165]
[1768497629988,6.2842,143.26,143.2,3.44054142]
[1768497630183,3.03497132,143.29,143.21,3.44054142]
[1768497630987,3.03497132,143.29,143.24,0.05170947]
[1768497631794,9.31787132,143.29,143.24,0.05170947]
[1768497635901,9.28610061,143.28,143.21,9.72684142]
[1768497639301,9.2712324,143.27,143.2,3.44054142]
[1768497640803,9.2712324,143.27,143.2,9.72724142]
[1768497644496,2.96323237,143.24,143.16,3.44054142]
[1768497645502,0.04583565,143.21,143.16,3.44054142]
[1768497645903,0.04583565,143.21,143.16,9.72864142]
[1768497649211,0.04583565,143.21,143.16,3.44054142]
[1768497651310,6.2852,143.24,143.16,3.44054142]
[1768497651511,2.96732858,143.26,143.18,3.28016669]
[1768497652721,2.96732858,143.26,143.21,0.04907475]
[1768497653015,9.25182858,143.26,143.21,0.04907475]
[1768497653719,6.2846,143.25,143.21,0.04907475]
[1768497656118,6.2839,143.27,143.21,3.32924144]
[1768497656422,2.95069986,143.31,143.21,3.32924144]
[1768497656615,4.91883663,143.3,143.21,7.71845348]
[1768497656812,2.95069986,143.31,143.22,3.28016669]
[1768497657113,4.91810821,143.3,143.22,6.2855]
[1768497657318,9.23299986,143.31,143.25,0.04881625]
[1768497657521,4.91878575,143.3,143.25,0.04881625]
[1768497657707,9.23299986,143.31,143.25,0.04881625]
[1768497657912,4.91885271,143.3,143.25,0.04881625]
[1768497658113,9.23299986,143.31,143.25,0.04881625]
[1768497658317,4.91871435,143.3,143.25,0.04881625]
[1768497658620,9.23299986,143.31,143.25,0.04881625]
[1768497658813,4.9186373,143.3,143.25,0.04881625]
[1768497659021,9.22012299,143.33,143.25,3.32898294]
[1768497659220,4.9178594,143.32,143.25,3.32898294]
[1768497659425,4.9178594,143.31,143.25,3.32898294]
[1768497659720,2.93482206,143.31,143.25,0.04881625]
[1768497660717,102.09181204,143.34,143.25,0.04881625]
[1768497660718,2.93096594,143.29,143.25,0.04881625]
[1768497661119,2.93096594,143.29,143.23,3.28016669]
[1768497661424,9.21406594,143.29,143.23,3.28016669]
[1768497661627,9.21406594,143.29,143.25,0.04783355]
[1768497662127,2.9271541,143.27,143.19,6.2869]
[1768497662422,2.9271541,143.27,143.19,3.28016669]
[1768497663420,0.04581364,143.24,143.19,3.28016669]
[1768497663822,0.04581364,143.24,143.2,6.2866]
[1768497664019,0.04581364,143.24,143.2,9.56676669]
[1768497665630,2.9271541,143.27,143.21,6.2863]
[1768497665926,2.9271541,143.27,143.21,0.04747253]